Cogmind - Beta 17 @@@ ROGUE MODE // 2026.07.10 @ 18:19:31 Player: Cinder Result: Destroyed by Y-64 Sentinel with KE Penetrator Performance ------------- Evolutions (5) 2500 Regions Visited (10) 2000 Robots Destroyed (189) 945 Value Destroyed (6366) 6366 Prototype IDs (36) 720 Alien Tech Used (0) 0 Bonus (2769) 2769 TOTAL SCORE: 15300 Bonus ------- High Alert Combat Kills 1477 Follower Combat Kills 192 Registered with UFD 300 Met Optimus in HQ 500 Met Data Miner 300 Cogmind --------- Core Integrity 0/1000 Matter 283/300 Energy 99/100 System Corruption 20% Temperature Cool (0) Movement Core (50) Location -5/Factory Parts ------- > --- POWER (2) -------- (None) > --- PROPULSION (5) --- (None) > --- UTILITY (7) ------ (None) > --- WEAPON (3) ------- (None) > --- INVENTORY (5) ---- Layered Heavy Armor Plating Heavy Insulated Plating Peak State ------------ > --- POWER ------------ Light Fission Core Cold Fusion Reactor > --- PROPULSION ------- Enhanced Flexi-carbon Leg Enhanced Flexi-carbon Leg Enhanced Flexi-carbon Leg Enhanced Flexi-carbon Leg Wheel > --- UTILITY ---------- Scrap Suit Advanced Cooling System Cargo Storage Unit Surveybot 17 Chip A0-MCA's Component Scanner > --- WEAPON ----------- Improved Proton Missile Launcher Improved Proton Missile Launcher Precision Rocket Launcher > --- INVENTORY -------- Light Fission Core Light Fission Core Light Fission Core Wheel Wheel Wheel Wheel Wheel Advanced Cooling System Advanced Cooling System Advanced Cooling System Huge Storage Unit Energy Well Improved Matter Compressor Improved Terrain Scanner Seismic Detector Precision Energy Filter Layered Heavy Armor Plating Layered Heavy Armor Plating Layered Heavy Armor Plating Heavy Insulated Plating Force Field Force Field High-powered Tractor Beam Matter Neutralizer Matter Neutralizer [Rating: 101] Favorites ----------- Power Angular Momentum Engine Engine Angular Momentum Engine Power Core Fission Core Reactor Cold Fusion Reactor Propulsion Wheel Leg Enhanced Flexi-carbon Leg Wheel Wheel Utility A0-MCA's Component Scanner Device Scrap Suit Storage Huge Storage Unit Processor A0-MCA's Component Scanner Protection Hardened Light Armor Plating Weapon Light EM Pulse Cannon Energy Gun Tesla Rifle Energy Cannon Light EM Pulse Cannon Launcher Precision Rocket Launcher Build | -11 -10 -10 -10 -9 -6 -6 -6 -6 -5 -5 ------- Run | Yrd Mat Min Sub Scr Fac Low Low Dat Pro Fac Slots Evolved 10 | . . . . . 8 . . . . 2 Power 1 | . . . . . 1 . . . . . Propulsion 3 | . . . . . 2 . . . . 1 Utility 5 | . . . . . 4 . . . . 1 Weapon 1 | . . . . . 1 . . . . . Parts Attached 122 | 7 8 . 7 9 30 2 2 . 3 54 Power 16 | 1 . . 1 1 6 . 2 . . 5 Engine 9 | 1 . . 1 1 3 . 2 . . 1 Core 6 | . . . . . 3 . . . . 3 Reactor 1 | . . . . . . . . . . 1 Propulsion 34 | 2 1 . 3 5 3 . . . . 20 Treads . | . . . . . . . . . . . Leg 4 | . . . . . . . . . . 4 Wheel 30 | 2 1 . 3 5 3 . . . . 16 Hover . | . . . . . . . . . . . Flight . | . . . . . . . . . . . Utility 35 | 2 2 . 1 1 12 2 . . 1 14 Device 18 | 1 . . . . 6 1 . . . 10 Storage 4 | 1 2 . . . 1 . . . . . Processor 2 | . . . . 1 . . . . . 1 Hackware . | . . . . . . . . . . . Protection 11 | . . . 1 . 5 1 . . 1 3 Artifact . | . . . . . . . . . . . Weapon 37 | 2 5 . 2 2 9 . . . 2 15 Energy Gun 20 | 2 4 . 1 1 5 . . . . 7 Energy Cannon 11 | . 1 . 1 . 3 . . . . 6 Ballistic Gun . | . . . . . . . . . . . Ballistic Cannon . | . . . . . . . . . . . Launcher 6 | . . . . 1 1 . . . 2 2 Special Weapon . | . . . . . . . . . . . Impact Weapon . | . . . . . . . . . . . Slashing Weapon . | . . . . . . . . . . . Piercing Weapon . | . . . . . . . . . . . Special Melee Weapon . | . . . . . . . . . . . Unidentified Prototypes . | . . . . . . . . . . . Parts Lost 68 | . 1 . 6 . 6 1 . . 2 52 Power 9 | . . . 1 . 1 . . . . 7 Propulsion 24 | . . . 3 . . . . . . 21 Utility 9 | . . . . . . . . . . 9 Weapon 26 | . 1 . 2 . 5 1 . . 2 15 Highest Loss Streak 16 | . 1 . 3 . 1 1 . . 1 16 To Critical Strikes 1 | . . . . . . . . . . 1 Average Backups 22 | 2 15 21 21 21 22 26 26 26 24 25 Power 1 | . 1 2 1 1 2 1 1 2 2 2 Propulsion 2 | . 2 3 2 1 2 4 3 3 3 2 Utility 13 | . 6 10 10 12 14 17 17 17 16 15 Weapon 4 | . 4 6 6 6 4 4 4 4 2 4 Tool/Special . | . . . . . . . . . . . Unused Backups 60 | . 2 . . 15 22 . 1 . . 20 Power 9 | . 1 . . 2 3 . . . . 3 Propulsion 3 | . . . . 2 1 . . . . . Utility 36 | . . . . 7 13 . 1 . . 15 Weapon 12 | . 1 . . 4 5 . . . . 2 Tool/Special . | . . . . . . . . . . . Average Slot Usage (%) 88 | . 99 100 98 100 84 80 80 80 77 81 Engine 9 | . 13 14 14 14 6 6 12 13 13 6 Core 2 | . . . . . 4 6 . . . 2 Leg 1 | . . . . . . . . . . 6 Wheel 22 | . 28 28 27 28 19 20 20 20 20 17 Device 7 | . 14 14 2 . 11 6 6 6 6 7 Storage 8 | . 14 14 14 14 6 6 6 6 6 4 Processor 6 | . . . . 5 6 6 6 6 6 10 Protection 5 | . . . 11 8 6 6 6 6 6 3 Energy Gun 10 | . 21 14 14 10 9 . . . . 10 Energy Cannon 8 | . 6 14 13 14 9 13 13 13 3 2 Launcher 2 | . . . . 3 . 5 6 6 13 2 Peak Build Rating 101 | 7 12 11 14 23 66 68 67 67 71 101 Average Rating 48 | 5 10 11 12 16 58 66 66 67 68 79 On Entrance 36 | . 7 11 11 14 22 59 67 67 67 71 Avg Prop Armor Cover (%) 2 | . . . . . . . . . . 2 Naked Turns 26 | . . . . . . . . . . 26 Heaviest Build 214 | 15 92 92 97 104 191 197 205 205 214 211 Greatest Support 112 | 26 26 26 32 40 48 48 48 48 48 112 Greatest Overweight (x) 9 | . 3 3 3 4 5 4 4 4 4 9 Average Overweight (x) 2 | . 1 3 3 3 2 3 4 4 4 2 Largest Inventory Capacity 30 | 8 25 25 25 25 30 30 30 30 30 30 Average Capacity 26 | 7 19 25 25 25 25 30 30 30 30 29 Most Carried 30 | 5 21 22 25 25 30 30 30 29 30 30 Average Carried 24 | 2 15 21 22 23 24 29 29 29 27 27 Final Capacity 30 | 8 25 25 25 25 30 30 30 30 30 5 Final Carried 30 | 5 21 22 24 21 30 30 29 29 27 4 Scrap Suit Usage (%) 7 | . . . . . 26 . . . . 3 Parts Cannibalized 10 | . . . . . 7 . . . . 3 Class Distribution -------------------- 37% | Mutant 22% | Hauler-Tank 16% | Tank 8% | Hauler-Mutant 4% | Derelict-Tank 3% | Hauler-Skirmisher 3% | Hauler-Gunner Dominant Class ---------------- Mutant | -10/Materials Mutant | -10/Mines Mutant | -10/Subcaves Mutant | -9/Scraptown Tank | -6/Factory Hauler-Tank | -6/Lower Caves Hauler-Tank | -6/Lower Caves Hauler-Tank | -6/Data Miner Hauler-Tank | -5/Proximity Caves Hauler-Tank | -5/Factory Resources | -11 -10 -10 -10 -9 -6 -6 -6 -6 -5 -5 ----------- Run | Yrd Mat Min Sub Scr Fac Low Low Dat Pro Fac Matter Collected 3841 | 260 275 . 60 110 515 82 60 . 208 2271 Remotely 596 | . . . . . . . . . . 596 Salvage Created 7367 | 139 456 73 263 . 2545 97 154 . 103 3537 Parts 373 | 7 28 17 13 . 123 4 5 . 6 170 Haulers Intercepted 5 | . 1 . . . 1 . . . . 3 Recyclers Shooed 6 | . . . . . 2 . . . . 4 Parts Field Recycled . | . . . . . . . . . . . Retrieved Matter . | . . . . . . . . . . . Parts Self-Destructed 16 | . . . 12 . . . 1 . 3 . Prevented 3 | . . . . . . 3 . . . . Parts Restored . | . . . . . . . . . . . Kills | -11 -10 -10 -10 -9 -6 -6 -6 -6 -5 -5 ------- Run | Yrd Mat Min Sub Scr Fac Low Low Dat Pro Fac Combat Hostiles Destroyed 109 | . 6 6 5 . 34 1 3 . 5 49 Guns 22 | . 4 3 . . 9 . . . . 6 Cannons 17 | . 1 1 4 . 7 . . . 1 3 AOE 54 | . 1 2 . . 9 1 3 . 4 34 Classes Destroyed 19 | 2 5 . 1 . 7 1 . . 1 2 Worker 33 | . 3 . . . 12 . . . . 18 Builder 11 | . . . . . 2 . . . . 9 Tunneler 8 | 2 . . . . . . . . . 6 Hauler 5 | . 1 . . . 1 . . . . 3 Recycler 6 | 1 1 . . . 1 . . . . 3 Minesweeper 2 | . . . . . . 2 . . . . Operator 3 | . . . . . 2 . . . . 1 Drone 2 | . . . . . . . . . 2 . Watcher 12 | . 3 . . . 5 . . . . 4 Swarmer 21 | . 3 6 . . 8 . . . . 4 Grunt 45 | . 3 . . . 15 . 2 . . 25 Brawler 2 | . . . . . 1 . 1 . . . Protector 1 | . . . . . . . . . . 1 Sentry 4 | . . . . . 1 . . . 1 2 Specialist 1 | . . . . . . . . . . 1 Hunter 12 | . . . . . 5 1 . . 1 5 Programmer 15 | . . . . . 3 . . . 1 11 Heavy 1 | . . . . . 1 . . . . . Subdweller 5 | . . . 5 . . . . . . . Best Kill Streak 9 | 3 3 3 1 . 5 1 3 . 2 9 Combat Bots Only 7 | . 3 3 1 . 4 1 3 . 2 7 Max Kills in Single Turn 6 | 1 2 3 1 . 4 1 3 . 2 6 Gunslinging 1 | . 1 . . . . . . . . . Exploded 4 | . 1 2 . . 4 1 3 . 1 4 Melee . | . . . . . . . . . . . Uniques/NPCs Destroyed . | . . . . . . . . . . . Combat | -11 -10 -10 -10 -9 -6 -6 -6 -6 -5 -5 -------- Run | Yrd Mat Min Sub Scr Fac Low Low Dat Pro Fac Hostile Shots Fired 786 | . 28 9 25 . 143 12 26 . 62 481 Missed 232 | . 8 2 8 . 49 3 9 . 16 137 Hits 554 | . 20 7 17 . 94 9 17 . 46 344 Melee 3 | . . . . . . . . . . 3 Projectile 551 | . 20 7 17 . 94 9 17 . 46 341 Critical Strikes 37 | . . . . . 6 . . . . 31 Damage Taken 10460 | . 251 52 388 . 1905 159 116 . 346 7243 Core 1303 | . 98 6 43 . 112 . . . 25 1019 Absorbed by Shields 609 | . . . . . . . 74 . 360 175 Ignored by Resistances 122 | . . . . . . . . . . 122 Regen/Repaired (Parts) 76 | . . . . . 57 . . . . 19 Core Remaining (%) 74 | 100 . . . 41 . . . . 83 . Volleys Fired 358 | 8 35 7 24 . 100 11 2 . 9 162 Largest 3 | 2 2 2 2 . 3 3 3 . 3 3 Hottest 253 | 90 101 96 101 . 176 162 155 . 155 253 Shots Fired 843 | 16 59 14 43 . 298 25 6 . 24 358 Gun 478 | 16 41 7 20 . 156 3 . . . 235 Cannon 278 | . 18 7 23 . 139 20 4 . 2 65 Launcher 87 | . . . . . 3 2 2 . 22 58 Special . | . . . . . . . . . . . Kinetic 1 | . . . . . 1 . . . . . Thermal 20 | 8 . . . . . . . . . 12 Explosive 59 | . . . . . 2 2 2 . 17 36 Electromagnetic 763 | 8 59 14 43 . 295 23 4 . 7 310 Robot Hit Streak 18 | 4 6 5 10 . 18 9 6 . 12 15 Robot Miss Streak 6 | 6 4 3 3 . 5 3 1 . 1 3 Penetration Max . | . . . . . . . . . . . Secondary Targets 2 | . 1 . . . 1 . . . . . Max Gunslinging Chain 1 | . 1 . . . 1 . . . . . Shots Hit Robots 545 | 7 43 6 33 . 180 14 5 . 13 244 Core Hits 332 | 4 19 5 12 . 93 5 7 . 12 175 Critical Kills . | . . . . . . . . . . . Critical Parts Destroyed . | . . . . . . . . . . . Critical Strikes 6 | 1 . . . . 3 . . . . 2 Burn 1 | 1 . . . . . . . . . . Corrupt 5 | . . . . . 3 . . . . 2 Melee Attacks . | . . . . . . . . . . . Impact . | . . . . . . . . . . . Slashing . | . . . . . . . . . . . Piercing . | . . . . . . . . . . . Sneak Attacks . | . . . . . . . . . . . Combat Hostiles . | . . . . . . . . . . . Follow-up Attacks . | . . . . . . . . . . . Damage Inflicted 19804 | 98 821 231 458 . 5075 406 422 . 586 11707 Guns 5197 | 98 368 45 148 . 2042 32 . . . 2464 Cannons 3947 | . 335 62 251 . 1867 218 90 . 40 1084 Explosions 10660 | . 118 124 59 . 1166 156 332 . 546 8159 Melee . | . . . . . . . . . . . Ramming . | . . . . . . . . . . . Kinetic 261 | . . . . . 261 . . . . . Thermal 2413 | 48 118 124 59 . 537 42 169 . . 1316 Explosive 6821 | . . . . . 368 114 163 . 496 5680 Electromagnetic 10309 | 50 703 107 399 . 3909 250 90 . 90 4711 Impact . | . . . . . . . . . . . Slashing . | . . . . . . . . . . . Piercing . | . . . . . . . . . . . Highest Corruption 20 | . . . . . 6 6 . . 2 20 Average Corruption 6 | . . . . . 4 3 . . 1 10 Corruption Purged 13 | . . . . . . 6 . . . 7 Corruption Blocked . | . . . . . . . . . . . Effects 114 | . . . . . 49 3 . . 2 60 Message Errors 32 | . . . . . 17 1 . . 1 13 Matter Fused 26 | . . . . . 11 1 . . . 14 Heat Flow Errors 10 | . . . . . 4 . . . 1 5 Energy Discharges 11 | . . . . . 4 . . . . 7 Parts Rejected 4 | . . . . . 1 1 . . . 2 Parts Fused 1 | . . . . . . . . . . 1 Data Loss (minor) 10 | . . . . . 3 . . . . 7 Data Loss (major) 4 | . . . . . 3 . . . . 1 Misfires 7 | . . . . . 5 . . . . 2 Alerts 1 | . . . . . . . . . . 1 Misdirections 2 | . . . . . . . . . . 2 Weapon Failures 6 | . . . . . 1 . . . . 5 Overload Shots . | . . . . . . . . . . . Overflow Damage 844 | . 19 32 . . 113 . . . . 680 Projectiles 96 | . 11 . . . 23 . . . . 62 Explosions 748 | . 8 32 . . 90 . . . . 618 Melee . | . . . . . . . . . . . Knockbacks . | . . . . . . . . . . . Impact . | . . . . . . . . . . . Kinetic . | . . . . . . . . . . . Secondary . | . . . . . . . . . . . Self-Inflicted Damage 1060 | . 22 . . . 396 . 82 . . 560 Shots 26 | . 1 . . . 8 . 2 . . 15 Rammed . | . . . . . . . . . . . Targets Rammed . | . . . . . . . . . . . Kicked . | . . . . . . . . . . . Crushed . | . . . . . . . . . . . Highest Temperature 433 | 150 216 72 17 . 401 198 200 . 148 433 Average Temperature 85 | 60 70 33 7 . 71 77 103 . 50 111 Received Heat Transfer 1966 | . 111 . 87 . 435 . 18 . 30 1285 Effects 4 | . . . . . 1 . . . . 3 Shutdowns 3 | . . . . . 1 . . . . 2 Energy Bleed 1 | . . . . . . . . . . 1 Siege Activations . | . . . . . . . . . . . Martial Activations . | . . . . . . . . . . . Shielding Activations . | . . . . . . . . . . . Robots Disrupted 2 | . . . . . 1 . . . . 1 Combat Hostiles 2 | . . . . . 1 . . . . 1 Robots Corrupted 24 | . 2 . 1 . 10 1 . . . 10 Combat Hostiles 16 | . . . 1 . 9 . . . . 6 Parts Fried 78 | . 7 . 6 . 21 6 . . . 38 Impact Corruptions . | . . . . . . . . . . . Robots Melted . | . . . . . . . . . . . Combat Hostiles . | . . . . . . . . . . . Parts Melted 2 | . . . 1 . . . . . . 1 Heat Transferred 2182 | 222 50 150 50 . 500 50 . . . 1160 Parts Sabotaged . | . . . . . . . . . . . Parts Stolen . | . . . . . . . . . . . Parts Stripped . | . . . . . . . . . . . Power Chain Reactions 23 | . 2 . 1 . 8 1 1 . . 10 Alert | -11 -10 -10 -10 -9 -6 -6 -6 -6 -5 -5 ------- Run | Yrd Mat Min Sub Scr Fac Low Low Dat Pro Fac Maximum Alert Level 5 | . . 1 . . 3 . . . . 5 Low Security (%) 48 | 100 100 97 . . 29 . . . . 41 Level 1 6 | . . 2 . . 15 . . . . . Level 2 20 | . . . . . 25 . . . . 25 Level 3 20 | . . . . . 29 . . . . 22 Level 4 . | . . . . . . . . . . 1 Level 5 3 | . . . . . . . . . . 8 High Security . | . . . . . . . . . . . Max Security . | . . . . . . . . . . . Peak Influence 1928 | 10 115 208 . . 956 . . . . 1928 Initial 7 | . . . . . . . . . . 7 Average 380 | 1 28 42 . . 439 . . . . 512 Influence Increases 5350 | 15 278 238 . . 1612 40 85 . 105 2977 Destroy 0b10 Robot/C 2120 | . 120 120 . . 780 20 60 . 60 960 Destroy 0b10 Robot/NC 415 | 15 40 . . . 115 10 . . 10 225 Destroy Leader 464 | . 38 20 . . 202 10 10 . 20 164 Allied During Kill 22 | . . . . . 22 . . . . . Successful Hack 182 | . 22 . . . 66 . . . . 94 Select Force Hacks 50 | . . . . . . . . . . 50 Disable Machine 765 | . . 60 . . 195 . . . . 510 Destroy Structure 882 | . 13 23 . . 52 . . . . 794 Lose Combat Pursuer 450 | . 45 15 . . 180 . 15 . 15 180 Influence Decreases 3424 | 15 278 50 188 . 656 626 191 264 93 1063 Entered New Map 793 | . . . 99 . . 354 71 264 . 5 Time Decay 1999 | 15 268 50 49 . 576 262 120 . 93 566 Lost Part 612 | . 10 . 40 . 60 10 . . . 492 Lost Ally 20 | . . . . . 20 . . . . . Squads Dispatched 38 | . . . . . 15 . . . . 23 Investigation 7 | . . . . . 2 . . . . 5 Extermination 11 | . . . . . 6 . . . . 5 Reinforcement 15 | . . . . . 7 . . . . 8 Assault 5 | . . . . . . . . . . 5 Garrison . | . . . . . . . . . . . Intercept . | . . . . . . . . . . . Searches Triggered . | . . . . . . . . . . . Data Miner Redirects 4 | . . . . . . . . . . 4 Construction Impeded 5 | . . . . . 1 . . . . 4 Haulers Reinforced 5 | . . . . . 2 . . . . 3 Active Scanning Responses . | . . . . . . . . . . . Cargo Convoy Interrupts 1 | . . . . . . . . . . 1 Stealth | -11 -10 -10 -10 -9 -6 -6 -6 -6 -5 -5 --------- Run | Yrd Mat Min Sub Scr Fac Low Low Dat Pro Fac Distress Signals 8 | . . 1 . . 1 . . . . 6 Communications Jammed . | . . . . . . . . . . . Distress Signals . | . . . . . . . . . . . Times Spotted 177 | . 12 5 5 . 63 1 4 . 4 83 Peak Tracking Total 17 | . 4 3 1 . 5 1 3 . 2 17 Tactical Retreats 19 | . 1 1 . . 8 . 1 . 1 7 Traps | -11 -10 -10 -10 -9 -6 -6 -6 -6 -5 -5 ------- Run | Yrd Mat Min Sub Scr Fac Low Low Dat Pro Fac Traps Triggered 9 | . 2 . . . 4 . . . . 3 Indirectly . | . . . . . . . . . . . Trap Hack Attempts . | . . . . . . . . . . . Triggered . | . . . . . . . . . . . Disarmed . | . . . . . . . . . . . Reprogrammed . | . . . . . . . . . . . Reused 1 | . . . . . . . 1 . . . Traps Extracted . | . . . . . . . . . . . Installed 19 | . . . . . . 18 1 . . . Triggered 1 | . . . . . . . 1 . . . Most Traps Carried 1 | . . . . . . 1 1 . . . Machines | -11 -10 -10 -10 -9 -6 -6 -6 -6 -5 -5 ---------- Run | Yrd Mat Min Sub Scr Fac Low Low Dat Pro Fac Machines Disabled 51 | . . 4 . . 13 . . . . 34 Max in Single Turn 11 | . . 4 . . 1 . . . . 11 Garrison Access 2 | . . . . . . . . . . 2 Machines Repaired . | . . . . . . . . . . . Machines Dismantled . | . . . . . . . . . . . Machines Sabotaged . | . . . . . . . . . . . Overloaded Fab Kills 3 | . . . . . . . . . . 3 Hacking | -11 -10 -10 -10 -9 -6 -6 -6 -6 -5 -5 --------- Run | Yrd Mat Min Sub Scr Fac Low Low Dat Pro Fac Machines Accessed 44 | . 8 . . 4 13 . . 4 . 15 Terminals 23 | . 6 . . . 9 . . . . 8 Fabricators 4 | . . . . . 1 . . . . 3 Repair Stations . | . . . . . . . . . . . Recycling Units 4 | . 2 . . . 1 . . . . 1 Scanalyzers 4 | . . . . . 2 . . . . 2 Garrison Access 1 | . . . . . . . . . . 1 Total Hacks 143 | . 19 . . 15 38 . . 30 . 41 Successful 102 | . 10 . . 15 21 . . 30 . 26 Failed 39 | . 8 . . . 16 . . . . 15 Catastrophic 10 | . 1 . . . 4 . . . . 5 Database Lockouts 2 | . 1 . . . 1 . . . . . Manual 61 | . 17 . . . 23 . . . . 21 Terminals 56 | . 15 . . . 23 . . . . 18 Fabricators 9 | . . . . . 3 . . . . 6 Repair Stations . | . . . . . . . . . . . Recycling Units 10 | . 4 . . . 3 . . . . 3 Scanalyzers 22 | . . . . . 9 . . . . 13 Garrison Access 1 | . . . . . . . . . . 1 Terminal Hacks 55 | . 2 . . 15 6 . . 30 . 2 Record 21 | . . . . 10 . . . 11 . . Part Schematic 12 | . 1 . . . . . . 11 . . Robot Schematic 6 | . . . . . 1 . . 5 . . Robot Analysis 7 | . . . . 5 2 . . . . . Prototype ID Bank 3 | . . . . . . . . 3 . . Branch Access Points 2 | . . . . . 1 . . . . 1 Terminal Index 1 | . . . . . 1 . . . . . Locate Traps 1 | . . . . . . . . . . 1 Registered Components 2 | . 1 . . . 1 . . . . . Fabricator Hacks 4 | . . . . . . . . . . 4 Load Schematic 2 | . . . . . . . . . . 2 Build 2 | . . . . . . . . . . 2 Repair Station Hacks . | . . . . . . . . . . . Recycling Unit Hacks . | . . . . . . . . . . . Scanalyzer 17 | . . . . . 7 . . . . 10 Insert Component 6 | . . . . . 3 . . . . 3 Analyze 7 | . . . . . 3 . . . . 4 Retrieve Study 4 | . . . . . 1 . . . . 3 Garrison Access Hacks 1 | . . . . . . . . . . 1 Seal Access 1 | . . . . . . . . . . 1 Unauthorized Hacks 25 | . 8 . . . 8 . . . . 9 Terminals 18 | . 6 . . . 6 . . . . 6 Botnet 18 | . 6 . . . 6 . . . . 6 Fabricators 1 | . . . . . . . . . . 1 Overload 1 | . . . . . . . . . . 1 Repair Stations . | . . . . . . . . . . . Recycling Units 6 | . 2 . . . 2 . . . . 2 Reject 4 | . 2 . . . 1 . . . . 1 Mask 2 | . . . . . 1 . . . . 1 Scanalyzers . | . . . . . . . . . . . Garrison Access . | . . . . . . . . . . . Data Cores Recovered 1 | . . . . . . . . . . 1 Used . | . . . . . . . . . . . Hacking Detections 29 | . 6 . . . 12 . . . . 11 Full Trace Events 5 | . . . . . 1 . . . . 4 Feedback Events . | . . . . . . . . . . . Feedback Blocked . | . . . . . . . . . . . Robot Schematics Acquired 6 | . . . . . 1 . . 5 . . Robots Built . | . . . . . . . . . . . Authchips . | . . . . . . . . . . . Time . | . . . . . . . . . . . Total Robot Build Rating . | . . . . . . . . . . . Part Schematics Acquired 17 | . 1 . . . 3 . . 11 . 2 Parts Built 3 | . . . . . . . . . . 3 Authchips . | . . . . . . . . . . . Time 269 | . . . . . . . . . . 269 Total Part Build Rating 19 | . . . . . . . . . . 19 Part Studies Acquired 4 | . . . . . 1 . . . . 3 Parts Repaired . | . . . . . . . . . . . Time . | . . . . . . . . . . . Parts Recycled . | . . . . . . . . . . . Recycled Matter . | . . . . . . . . . . . Retrieved Matter . | . . . . . . . . . . . Retrieved Components . | . . . . . . . . . . . Parts Scanalyzed 6 | . . . . . 3 . . . . 3 Part Schematics Acquired 5 | . . . . . 3 . . . . 2 Parts Damaged 1 | . . . . . 1 . . . . . Bothacking | -11 -10 -10 -10 -9 -6 -6 -6 -6 -5 -5 ------------ Run | Yrd Mat Min Sub Scr Fac Low Low Dat Pro Fac Used RIF Installer . | . . . . . . . . . . . Robots Hacked . | . . . . . . . . . . . Non-combat . | . . . . . . . . . . . Combat . | . . . . . . . . . . . Robot Hacks Applied . | . . . . . . . . . . . Relay Couplers Released 2 | . . . . . . . . . . 2 Machine Destruction 2 | . . . . . . . . . . 2 Fabnet Peak Effective % . | . . . . . . . . . . . Robots Rewired . | . . . . . . . . . . . Allies Hacked . | . . . . . . . . . . . Hacks Repelled . | . . . . . . . . . . . Allies | -11 -10 -10 -10 -9 -6 -6 -6 -6 -5 -5 -------- Run | Yrd Mat Min Sub Scr Fac Low Low Dat Pro Fac Total Allies 2 | . . . . 1 1 . . . . . Largest Group 1 | . . . . 1 1 . . . . . Highest-Rated Group 48 | . . . . 48 48 . . . . . Highest-Rated Ally 48 | . . . . 48 48 . . . . . Initial UFD Resources 26 | . . . . . 23 23 23 23 26 26 Total Orders . | . . . . . . . . . . . Ally Attacks 22 | . . . . . 22 . . . . . Total Damage 466 | . . . . . 466 . . . . . Kills 5 | . . . . . 5 . . . . . Allies Corrupted . | . . . . . . . . . . . Allies Melted . | . . . . . . . . . . . Intel | -11 -10 -10 -10 -9 -6 -6 -6 -6 -5 -5 ------- Run | Yrd Mat Min Sub Scr Fac Low Low Dat Pro Fac Active Infowar (turns) 2486 | 30 984 318 68 . 444 . . . . 642 Terrain 642 | . . . . . . . . . . 642 Seismic 1844 | 30 984 318 68 . 444 . . . . . Robot Analysis Total 7 | . . . . 5 2 . . . . . Derelict Logs Recovered 8 | . . 1 . 3 . 2 1 . 1 . Drone Launches . | . . . . . . . . . . . Drone Recoveries . | . . . . . . . . . . . Exploration | -11 -10 -10 -10 -9 -6 -6 -6 -6 -5 -5 ------------- Run | Yrd Mat Min Sub Scr Fac Low Low Dat Pro Fac Turns Passed 10402 | 113 984 318 449 1923 2715 573 245 107 414 2561 Spaces Moved 6677 | 70 749 218 245 1290 1897 362 165 77 269 1335 Core 54 | 5 . . . . . . . . . 49 Treads . | . . . . . . . . . . . Legs 285 | . . . . . . . . . . 285 Wheels 6338 | 65 749 218 245 1290 1897 362 165 77 269 1001 Hover . | . . . . . . . . . . . Flight . | . . . . . . . . . . . Fastest Speed 50 | 50 90 135 135 130 110 125 140 140 140 50 Average Speed 127 | 86 111 135 143 142 114 136 140 140 140 133 Slowest Speed 205 | 90 135 135 145 145 155 140 140 140 140 205 Overloaded Moves . | . . . . . . . . . . . Propulsion Burnouts . | . . . . . . . . . . . Robots Hopped . | . . . . . . . . . . . Potential Cave-ins . | . . . . . . . . . . . Cave-ins Triggered . | . . . . . . . . . . . Exploration Rate (%) 50 | 3 98 60 20 81 46 47 33 69 57 42 Regions Visited 10 Branch Regions 7 Pre-discovered Areas 8 | . . 2 . 3 . 1 1 1 . . Known Exits Taken 3 | . . . . . 1 1 . . 1 . Unknown Exits Taken 7 | 1 1 1 1 1 . . 1 1 . . Scrap Searched 14 | . . 1 4 6 . 1 1 . 1 . Spaces Dug . | . . . . . . . . . . . Terrain Destroyed 771 | . 13 23 4 . 57 36 39 . 173 426 Melee . | . . . . . . . . . . . Projectile 1 | . . . . . . . . . . 1 AOE 770 | . 13 23 4 . 57 36 39 . 173 425 Terrain Rammed . | . . . . . . . . . . . Walls Destroyed . | . . . . . . . . . . . Machines Disabled . | . . . . . . . . . . . Actions | -11 -10 -10 -10 -9 -6 -6 -6 -6 -5 -5 --------- Run | Yrd Mat Min Sub Scr Fac Low Low Dat Pro Fac Total 7854 | 102 838 228 300 1391 2232 417 178 76 286 1806 Wait 299 | 13 14 3 13 21 118 17 1 . 1 98 Move 6667 | 69 748 217 244 1289 1896 361 164 76 268 1335 Hop . | . . . . . . . . . . . Pick Up 170 | 5 19 1 9 32 41 2 2 . 2 57 Fast Attach 42 | 7 6 . . 1 9 2 1 . . 16 Attach 75 | . 2 . 6 . 14 2 . . 3 48 Detach 20 | . 3 . . 1 6 1 . . 1 8 Swap 75 | . 4 . 2 10 16 1 2 . . 40 Drop 120 | . 7 . 2 37 32 2 5 . 2 33 Fire 358 | 8 35 7 24 . 100 11 2 . 9 162 Melee . | . . . . . . . . . . . Ram . | . . . . . . . . . . . Kick . | . . . . . . . . . . . Crush . | . . . . . . . . . . . Escape Stasis 8 | . . . . . . . . . . 8 Rewire 1 | . . . . . . . . . . 1 Trap 19 | . . . . . . 18 1 . . . Miscellaneous . | . . . . . . . . . . . Route ------- -11/Scrapyard -10/Materials (discovered 5 exits: [*Mat x3] / [*Min x2]) -10/Mines -10/Subcaves -9/Scraptown (discovered 2 exits: *Fac x2) -6/Factory (discovered 3 exits: *Fac / *Low x2) -6/Lower Caves -6/Lower Caves (discovered 2 exits: *Fac / *Dat) -6/Data Miner -5/Proximity Caves -5/Factory (discovered 7 exits: *Fac x3 / Upp x2 / Ext x2) History --------- Turn | Location | Event 3 | -11/Scrapyard | Discovered new exit (range 16) 114 | -11/Scrapyard | Entered Materials 277 | -10/Materials | Discovered new exit (range 12) 304 | -10/Materials | Build established: Mutant 314 | -10/Materials | Discovered new exit (range 10) 411 | -10/Materials | Central database locked down 578 | -10/Materials | Discovered new exit (range 9) 708 | -10/Materials | Discovered new exit (range 11) 924 | -10/Materials | Discovered new exit (range 9) 1098 | -10/Materials | Entered Mines 1133 | -10/Mines | Assembled infested the area 1135 | -10/Mines | Learned location of Zion (-7) 1156 | -10/Mines | Learned location of Storage (-9) 1193 | -10/Mines | Received a Rocket Launcher from a helpful Derelict 1395 | -10/Mines | Discovered new exit (range 14) 1416 | -10/Mines | Entered Subcaves 1417 | -10/Subcaves | Approached by a straggling Scientist 1525 | -10/Subcaves | Lost 3 parts (2n1w) 1534 | -10/Subcaves | A swath of the cavern ceiling suddenly collapsed 1570 | -10/Subcaves | Disturbed a concealed Subdweller 1812 | -10/Subcaves | Core integrity fell below 50% 1865 | -10/Subcaves | Scientist uncovered a shortcut to Scraptown 1865 | -10/Subcaves | Entered Scraptown 2039 | -9/Scraptown | Visited UFD Registry 2039 | -9/Scraptown | Registered with UFD as "Thunderfunk" 2058 | -9/Scraptown | Visited Junk Repository 2091 | -9/Scraptown | Visited IN-MT5's Study 2130 | -9/Scraptown | Visited Cyclists 2142 | -9/Scraptown | Entered Cyclist Reading Room 2148 | -9/Scraptown | Learned location of Exiles (-9) 2186 | -9/Scraptown | Visited Shadow of the Wyrm 2196 | -9/Scraptown | Visited The Evicted 2229 | -9/Scraptown | Visited Fellowship of the Rings 2553 | -9/Scraptown | Discovered new exit (range 11) 2620 | -9/Scraptown | Scanned Subdweller tech in exchange for log data 2624 | -9/Scraptown | Learned location of 2 exits from Proximity Caves 2745 | -9/Scraptown | Visited Curators Association 2792 | -9/Scraptown | Visited DA-N13 Charitable Foundation 2868 | -9/Scraptown | Delivered Scrap Shield to a Scientist 2935 | -9/Scraptown | Visited Observation Area 2985 | -9/Scraptown | Found DCF Scrap (31 items) 3067 | -9/Scraptown | Visited A0-MCA Data Center 3076 | -9/Scraptown | Given a B- rating by A0-MCA 3084 | -9/Scraptown | Found A0-MCA's Component Scanner 3112 | -9/Scraptown | Visited Analyses Database 3146 | -9/Scraptown | Visited Scrap Suit Storage 3154 | -9/Scraptown | Found Scrap Suit 3168 | -9/Scraptown | Found Scrap Suit 3189 | -9/Scraptown | Visited Cartography Club 3214 | -9/Scraptown | Found Surveybot 17 Chip 3262 | -9/Scraptown | Visited Botcube Research 3274 | -9/Scraptown | Found Botcube 3326 | -9/Scraptown | Found Scrap Suit 3389 | -9/Scraptown | Visited Derelict Rescue Squad 3598 | -9/Scraptown | Botcube activated 3620 | -9/Scraptown | Botcube completed mutation into wheeled form, armed with 1 gun, 1 cannon 3706 | -9/Scraptown | Met Optimus 3706 | -9/Scraptown | Accepted into 0bPrime 3781 | -9/Scraptown | Discovered new exit (range 5) 3788 | -9/Scraptown | Entered Factory 3788 | -6/Factory | Accompanied by 1 ally 3788 | -6/Factory | Evolved 8 slots: Power x1, Propulsion x2, Utility x4, Weapon x1 4234 | -6/Factory | Build established: Derelict-Tank 4323 | -6/Factory | Central database locked down 4346 | -6/Factory | Found Botcube 4782 | -6/Factory | Build established: Tank 4903 | -6/Factory | Identified exit to Lower Caves 5233 | -6/Factory | Allied Derelicts emerged from ambush trap array 5366 | -6/Factory | Botcube activated 5376 | -6/Factory | Botcube completed mutation into wheeled form, armed with 1 gun 6114 | -6/Factory | Found Hvy. Reflective Plating 6242 | -6/Factory | Discovered new exit (range 7) 6404 | -6/Factory | Build established: Hauler-Tank 6503 | -6/Factory | Entered Lower Caves 6505 | -6/Lower Caves | UFD Scientist delivered a prototype 6508 | -6/Lower Caves | Found Enh. Scrap Shield 6544 | -6/Lower Caves | Identified exit to Lower Caves 6903 | -6/Lower Caves | Encountered a Warlord checkpoint 7076 | -6/Lower Caves | Entered another Lower Caves area 7113 | -6/Lower Caves | Discovered new exit (range 8) 7214 | -6/Lower Caves | Spotted B-75 Beast 7312 | -6/Lower Caves | Discovered new exit (range 7) 7321 | -6/Lower Caves | Entered Data Miner 7321 | -6/Data Miner | Discovered new exit (range 6) 7348 | -6/Data Miner | Met Data Miner 7373 | -6/Data Miner | Learned location of Section 7 (-2) 7373 | -6/Data Miner | Acquired the access code to Warlord's prototype stash 7396 | -6/Data Miner | Received God Mode back door access code from Data Miner 7428 | -6/Data Miner | Entered Proximity Caves 7429 | -5/Proximity Caves | Identified exit to Factory 7492 | -5/Proximity Caves | Spotted B-75 Beast 7598 | -5/Proximity Caves | Attracted the attention of an 0b10 checkpoint 7699 | -5/Proximity Caves | Learned 4 Factory zone layouts 7842 | -5/Proximity Caves | Entered Factory 7842 | -5/Factory | Evolved 2 slots: Propulsion x1, Utility x1 7843 | -5/Factory | Identified exit to Factory 8042 | -5/Factory | Fabricated Cold Fusion Reactor (x1) 8405 | -5/Factory | Lost 3 parts (1n2u) 8641 | -5/Factory | Discovered exit to Factory (range 13) 8810 | -5/Factory | Incoming investigation squad redirected 8864 | -5/Factory | Lost 3 parts (2n1u) 8900 | -5/Factory | Cargo convoy interrupted 9005 | -5/Factory | Found Hvy. Insulated Plating 9264 | -5/Factory | Lost 12 parts (1p5n1u5w) 9342 | -5/Factory | First assault squad dispatched 9363 | -5/Factory | Incoming assault squad redirected 9450 | -5/Factory | System corruption reached 10% 9528 | -5/Factory | Lost 6 parts (1p1n2u2w) 9741 | -5/Factory | Build established: Hauler-Mutant 9940 | -5/Factory | Incoming investigation squad redirected 10034 | -5/Factory | Fabricated Matter Neutralizer? 10180 | -5/Factory | Destroyed 7 combat bots 10217 | -5/Factory | Identified exit to Upper Caves 10217 | -5/Factory | Identified exit to Extension 10305 | -5/Factory | Lost 3 parts (1p1n1u) 10310 | -5/Factory | Spotted B-75 Beast 10315 | -5/Factory | Core integrity fell below 50% 10371 | -5/Factory | Core integrity fell below 20% 10377 | -5/Factory | Released all parts (3) 10385 | -5/Factory | Incoming assault squad redirected 10403 | -5/Factory | Destroyed by Y-64 Sentinel with KE Penetrator Last Messages --------------- >>Force(Overload) EM_IMPRINTER_OVERLOAD 10381_ ALERT: Suspicious activity at Fabricator F001. Dispatching Investigation squad. 10383_ Fabricator zaps L-41 Fighter with an electromagnetic arc. 10383_ Fabricator zaps Cogmind with an electromagnetic arc. 10383_ Fabricator zaps K-01 Serf with an electromagnetic arc. 10384_ Fabricator zaps A-15 Conveyor with an electromagnetic arc. 10384_ A-15 Conveyor system terminally corrupted. 10384_ K-01 Serf collects debris. 10384_ P-70 Sage resets L-41 Fighter, system corruption cleaned. 10385_ Fabricator zaps U-05 Engineer with an electromagnetic arc. 10385_ U-05 Engineer system terminally corrupted. 10385_ ALERT: Higher priority target reported, redirecting assault. 10387_ K-01 Serf collects debris. 10394_ Fabricator zaps K-01 Serf with an electromagnetic arc. 10394_ K-01 Serf system terminally corrupted. 10395_ System corrupted: Component data lost. [Achievement: Ride The Lightning] 10400_ Slug penetrates Wall. Map ----- +----------------------------------------------------+ | ?????????????????????????????????????????????????? | | ?????????????????????????????????????????????????? | | ?????????? """ ?????????????????????????????????? | | ?????????? #????????????????????????????????? | | ?????????? #????????????????????????????????? | | ???? ?? #????????????????????????????????? | | ???? ?? #????????????????????????????????? | | ???? " " " " #????????????????????????????????? | | ???# " " " T #????????????????????????????????? | | ???# " " " " +????????????????????????????????? | | ???# " " " #????????????????????????????????? | | ???# " " " #????????????????????????????????? | | ????# " " " #????????????????????????????????? | | ????# " " " #????????????????????????????????? | | ????# " " " #????????????????????????????????? | | ##### " " " #??????+?????????????????????????? | | ####??? ?????????????????????????? | | #??# ?????????????????????????? | | ######## #??# #????????????????????????? | | #??????# #??# #????????????????????????? | | #??????# #??# #????????????????????????? | | """###+##+######## #??# #????????????????????????? | | """# # #??# #????+###????????????????? | | "# #T #??# ##?? #????????????????? | | "F"# """" """" ## #### ;## #????????????????? | | """# """" """" ## @ Y #????????????????? | | # """" """" ## ## #????????????????? | | # """" """" ## #??? #????????????????? | | ### ? ## #?????##????????????????? | | ## ?""" """"???# #???????????????????????? | | ##????" """????# #???????????????????????? | | #?????" ""?????# #???????????????????????? | | #?????? "??????# #???????????????????????? | | #?????? ???????# #???????????????????????? | | #####???#???????#########???????????????????????? | | ????????????????????????????????????????? | | #######??????????????????????????????????????????? | | #???????????????????????????????????????????????? | | ??????????????????????????????????????????? | | #####???????????????????????????????????????????? | | ##???????????????????????????????????????????????? | | #??????????????????????????????????????????????? | | ##??????????????????????????????????????????????? | | #???????????????????????????????????????????????? | | ??????????????????????????????????????????????? | | #?????????????????????????????????????????????? | | +?????????????????????????????????????????????? | | #?????????????????????????????????????????????? | | ??????????????????????????????????????????????? | | ??????????????????????????????????????????????? | +----------------------------------------------------+ Best States ------------- Heat Dissipation 71 Energy Generation 32 Energy Capacity 540 Matter Stores 300 Matter Capacity 300 Sight Range 16 Terrain Scan Range 16 Terrain Scan Density 1210 Armor Coverage 800 Resistance: TH 25 Evasion (%) 50 Energy Filtering 50 Item Schematics ----------------- Huge Storage Unit | -10/Materials | Hacked Wheel | -6/Factory | Scanalyzed Cold Fusion Reactor | -6/Factory | Scanalyzed Sub. Shrapnel Launcher | -6/Factory | Scanalyzed Combat Drone Bay | -6/Data Miner | Free Lgt. Regenerative Plating | -6/Data Miner | Free Enh. Flexi-carbon Leg | -6/Data Miner | Free Exp. Heat Sink | -6/Data Miner | Free Enh. Coil Gun | -6/Data Miner | Free Myomer Leg | -6/Data Miner | Free Adv. Cryofiber Web | -6/Data Miner | Free Matter Neutralizer | -6/Data Miner | Free Imp. Antigrav System | -6/Data Miner | Free Force Lance | -6/Data Miner | Free Lgt. Particle Reactor | -6/Data Miner | Free Prc. Rocket Launcher | -5/Factory | Scanalyzed Cooling System | -5/Factory | Scanalyzed Robot Schematics ------------------ G-50 Soldier | -6/Factory | Hacked E-15 Imp | -6/Data Miner | Free A-15 Conveyor | -6/Data Miner | Free A-27 Freighter | -6/Data Miner | Free W-44 Eye | -6/Data Miner | Free R-10 Processor | -6/Data Miner | Free Fabricated ------------ Cold Fusion Reactor | x1 | -5/Factory Matter Neutralizer | x2 | -5/Factory Repaired ---------- Nothing Studied --------- Wheel | -6/Factory | Hacked Arm. Huge Wheel | -5/Factory | Hacked Tesla Rifle | -5/Factory | Hacked Imp. Arc Projector | -5/Factory | Hacked Alien Tech Used ----------------- None Achievements -------------- Loot Taster My Business Is Booming Ride The Lightning Challenges ------------ None Game ------ Seed PiercingPotentialCompactor Manual? 0 Play Time 02:08:44 Cumulative 182.7 hours Start 2026.07.10 @ 14:41:46 End 2026.07.10 @ 18:19:31 Sessions 7 Manual Loads 0 Difficulty Rogue Special Mode None Game No. 248 Rogue 248 Adventurer 0 Explorer 0 Win Type - Total 3 Types 3/0/0/0/0/0/0/0/0/0 Lore% 78 Gallery% 57 Achievement% 44 Wizard Run 0 Options --------- Layout 0 ASCII 0 Keyboard 0 Movement Numpad Keybinds 0 Fullscreen 1 Font 18/Terminus Map View 76x50 Zoom Use 0% Tactical HUD 1 Map Filters NONE Filters NONE Steam 1 RUN: d8e64155-f932-4fde-9748-ee485a9c10f2